fUSD/lending_fUSD_20260217
["ID","MTS","AMOUNT","RATE_DAILY","PERIOD"]
[405835681,1771349451495,-298.26089446,0.00016926,2]
[405835682,1771349451505,-187.0,0.00016946,2]
[405835683,1771349451515,-8721.140424,0.00016973,7]
[405835684,1771349451524,-187.0,0.00016981,2]
[405835685,1771349451534,-151.0,0.00016997,2]
[405835686,1771349451550,-13487.0,0.00017,2]
[405835687,1771349451559,-300.0,0.00017,2]
[405835688,1771349451569,-160.0,0.00017,7]
[405835689,1771349451579,-2000.0,0.00017,2]
[405835690,1771349451590,-833706.10579476,0.00017,2]
[405835691,1771349451600,-187.0,0.00017003,2]
[405835692,1771349451610,-187.0,0.00017028,2]
[405835693,1771349451620,-187.0,0.00017035,2]
[405835694,1771349451630,-686.0,0.00017065,2]
[405835695,1771349451640,-686.0,0.00017099,2]
[405835696,1771349451650,-150.0,0.000171,2]
[405835697,1771349451660,-205.74726689,0.0001711,3]
[405835698,1771349451670,-1014.66080185,0.0001716,2]
[405835699,1771349451680,-1088.37215301,0.00017163,2]
[405835700,1771349451690,-187.0,0.00017181,2]
[405835701,1771349451699,-187.0,0.00017202,2]
[405835702,1771349451709,-473.31058807,0.0001721,2]
[405835703,1771349451719,-150.0,0.00017325,2]
[405835704,1771349451729,-686.0,0.00017374,2]
[405835705,1771349451738,-2555.4951848,0.000174,5]
[405835706,1771349451748,-220.15883999,0.00017411,2]
[405835707,1771349451758,-500.0,0.00017411,2]
[405835708,1771349451768,-2000.0,0.00017452,7]
[405835709,1771349451778,-686.0,0.00017459,2]
[405835710,1771349451787,-500.0,0.00017466,2]
[405835711,1771349451799,-309.29654756,0.00017474,2]
[405835712,1771349451809,-173.57638878,0.000175,7]
[405835713,1771349451819,-3732.0,0.000175,2]
[405835714,1771349451829,-153.0,0.0001752,3]
[405835715,1771349451840,-500.0,0.00017521,2]
[405835716,1771349451849,-150.0,0.0001755,2]
[405835717,1771349451859,-242.0,0.00017575,2]
[405835718,1771349451869,-500.0,0.00017575,2]
[405835719,1771349451878,-500.0,0.0001763,2]
[405835720,1771349451888,-1007.54783297,0.0001764,2]
[405835721,1771349451897,-1106.23744377,0.0001764,2]
[405835722,1771349451907,-1029.93322082,0.0001764,2]
[405835723,1771349451917,-1014.7047578,0.0001764,2]
[405835724,1771349451926,-1011.32053196,0.0001764,2]
[405835725,1771349451937,-1097.03182666,0.0001764,2]
[405835726,1771349451948,-1038.93037754,0.0001764,2]
[405835727,1771349451959,-1015.06383453,0.0001764,2]
[405835728,1771349451970,-1000.87909343,0.0001764,2]
[405835729,1771349451979,-1057.96719667,0.0001764,2]
[405835730,1771349451989,-1088.53016316,0.0001764,2]
[405835731,1771349451998,-1036.12365217,0.0001764,2]
[405835732,1771349452007,-1106.43130941,0.0001764,2]
[405835733,1771349452018,-1066.89033004,0.0001764,2]
[405835734,1771349452028,-1055.06197995,0.0001764,2]
[405835735,1771349452038,-1148.92000613,0.0001764,2]
[405835736,1771349452049,-1012.13827857,0.0001764,2]
[405835737,1771349452059,-1738.46164441,0.0001764,2]
[405835738,1771349452069,-1026.66325335,0.0001764,2]
[405835739,1771349452078,-1016.09917041,0.0001764,2]
[405835740,1771349452088,-1023.96257791,0.0001764,2]
[405835741,1771349452097,-9977.9641171,0.0001764,2]
[405835742,1771349452107,-500.0,0.00017685,2]
[405835743,1771349452117,-784.32813885,0.000177,2]
[405835744,1771349452127,-403.0,0.000177,5]
[405835745,1771349452137,-350.0,0.00017703,2]
[405835746,1771349452147,-500.0,0.00017726,7]
[405835747,1771349452157,-1000.0,0.00017728,2]
[405835748,1771349452166,-1000.0,0.00017738,2]
[405835749,1771349452176,-500.0,0.0001774,2]
[405835750,1771349452185,-303.57595535,0.00017744,2]
[405835751,1771349452196,-1000.0,0.00017762,2]
[405835752,1771349452205,-1022.99162526,0.00017766,2]
[405835753,1771349452216,-150.0,0.00017775,2]
[405835754,1771349452228,-1000.0,0.00017781,2]
[405835755,1771349452239,-500.0,0.00017795,2]
[405835756,1771349452249,-1000.0,0.00017799,2]
[405835757,1771349452259,-1000.0,0.000178,2]
[405835758,1771349452269,-444.64,0.00017808,2]
[405835759,1771349452279,-500.0,0.00017808,2]
[405835760,1771349452292,-500.0,0.00017808,2]
[405835761,1771349452302,-500.0,0.00017808,2]
[405835762,1771349452311,-500.0,0.00017808,2]
[405835763,1771349452322,-500.0,0.00017808,2]
[405835764,1771349452332,-500.0,0.00017808,2]
[405835765,1771349452343,-500.0,0.00017808,2]
[405835766,1771349452353,-595.18929272,0.00017808,2]
[405835767,1771349452363,-500.0,0.00017808,2]
[405835768,1771349452373,-500.0,0.00017808,2]
[405835769,1771349452382,-500.0,0.00017808,2]
[405835770,1771349452392,-500.0,0.00017808,2]
[405835771,1771349452401,-500.0,0.00017808,2]
[405835772,1771349452411,-500.0,0.00017808,2]
[405835773,1771349452423,-350.0,0.00017808,2]
[405835774,1771349452435,-250.0,0.00017808,20]
[405835775,1771349452445,-250.0,0.00017808,20]
[405835776,1771349452455,-250.0,0.00017808,20]
[405835777,1771349452465,-250.0,0.00017808,20]
[405835778,1771349452477,-250.0,0.00017808,20]
[405835779,1771349452487,-250.0,0.00017808,20]
[405835780,1771349452499,-250.0,0.00017808,20]
[405835781,1771349452509,-250.0,0.00017808,20]
[405835782,1771349452519,-250.0,0.00017808,20]
[405835783,1771349452529,-250.0,0.00017808,20]
[405835784,1771349452539,-250.0,0.00017808,20]
[405835785,1771349452550,-250.0,0.00017808,20]
[405835786,1771349452560,-250.0,0.00017808,20]
[405835787,1771349452570,-250.0,0.00017808,20]
[405835788,1771349452580,-250.0,0.00017808,20]
[405835789,1771349452590,-250.0,0.00017808,20]
[405835790,1771349452600,-250.0,0.00017808,20]
[405835791,1771349452611,-250.0,0.00017808,20]
[405835792,1771349452621,-250.0,0.00017808,20]
[405835793,1771349452631,-250.0,0.00017808,20]
[405835794,1771349452640,-250.0,0.00017808,20]
[405835795,1771349452650,-250.0,0.00017808,20]
[405835796,1771349452660,-250.0,0.00017808,20]
[405835797,1771349452671,-250.0,0.00017808,20]
[405835798,1771349452681,-250.0,0.00017808,20]
[405835799,1771349452692,-250.0,0.00017808,20]
[405835800,1771349452702,-250.0,0.00017808,20]
[405835801,1771349452711,-250.0,0.00017808,20]
[405835802,1771349452722,-250.0,0.00017808,20]
[405835803,1771349452732,-250.0,0.00017808,20]
[405835804,1771349452741,-250.0,0.00017808,20]
[405835805,1771349452751,-250.0,0.00017808,20]
[405835806,1771349452762,-250.0,0.00017808,20]
[405835807,1771349452771,-250.0,0.00017808,20]
[405835808,1771349452781,-250.0,0.00017808,20]
[405835809,1771349452791,-250.0,0.00017808,20]
[405835810,1771349452802,-250.0,0.00017808,20]
[405835811,1771349452812,-250.0,0.00017808,20]
[405835812,1771349452822,-250.0,0.00017808,20]
[405835813,1771349452832,-250.0,0.00017808,20]
[405835814,1771349452843,-250.0,0.00017808,20]
[405835815,1771349452853,-250.0,0.00017808,20]
[405835816,1771349452863,-250.0,0.00017808,20]
[405835817,1771349452873,-250.0,0.00017808,20]
[405835818,1771349452883,-250.0,0.00017808,20]
[405835819,1771349452893,-250.0,0.00017808,20]
[405835820,1771349452903,-250.0,0.00017808,20]
[405835821,1771349452913,-250.0,0.00017808,20]
[405835822,1771349452923,-250.0,0.00017808,20]
[405835823,1771349452932,-250.0,0.00017808,20]
[405835824,1771349452942,-250.0,0.00017808,20]
[405835825,1771349452951,-250.0,0.00017808,20]
[405835826,1771349452961,-250.0,0.00017808,20]
[405835827,1771349452971,-250.0,0.00017808,20]
[405835828,1771349452981,-250.0,0.00017808,20]
[405835829,1771349452991,-250.0,0.00017808,20]
[405835830,1771349453001,-250.0,0.00017808,20]
[405835831,1771349453010,-250.0,0.00017808,20]
[405835832,1771349453020,-250.0,0.00017808,20]
[405835833,1771349453030,-250.0,0.00017808,20]
[405835834,1771349453297,-250.0,0.00017808,20]
[405835835,1771349453307,-250.0,0.00017808,20]
[405835836,1771349453317,-250.0,0.00017808,20]
[405835837,1771349453327,-800.0,0.00017808,2]
[405835838,1771349453338,-250.0,0.00017808,20]
[405835839,1771349453348,-250.0,0.00017808,20]
[405835840,1771349453358,-250.0,0.00017808,20]
[405835841,1771349453368,-250.0,0.00017808,20]
[405835842,1771349453378,-250.0,0.00017808,20]
[405835843,1771349453388,-352.041673,0.00017808,20]
[405835844,1771349453398,-1000.0,0.00017811,2]
[405835845,1771349453407,-1000.0,0.00017825,2]
[405835846,1771349453418,-1000.0,0.00017825,2]
[405835847,1771349453430,-1000.0,0.00017825,2]
[405835848,1771349453439,-1000.0,0.00017825,2]
[405835849,1771349453450,-1000.0,0.00017825,2]
[405835850,1771349453459,-1000.0,0.00017825,2]
[405835851,1771349453470,-1000.0,0.00017825,2]
[405835852,1771349453480,-1000.0,0.00017825,2]
[405835853,1771349453490,-1000.0,0.00017825,2]
[405835854,1771349453501,-2497.6923037,0.0001783,2]
[405835855,1771349453511,-500.0,0.00017849,2]
[405835856,1771349453521,-500.0,0.00017855,2]
[405835857,1771349453531,-200.0,0.00017855,2]
[405835858,1771349453541,-200.0,0.00017856,2]
[405835859,1771349453552,-1000.0,0.00017856,2]
[405835860,1771349453561,-500.0,0.00017856,2]
[405835861,1771349453571,-500.0,0.00017856,2]
[405835862,1771349453580,-200.0,0.00017856,2]
[405835863,1771349453590,-200.0,0.00017856,2]
[405835864,1771349453600,-1000.0,0.00017876,2]
[405835865,1771349453610,-1000.0,0.00017879,2]
[405835866,1771349453619,-1000.0,0.00017886,2]
[405835867,1771349453628,-350.0,0.00017892,2]
[405835868,1771349453638,-3096.24914226,0.000179,2]
[405835869,1771349453647,-3302.52748916,0.000179,2]
[405835870,1771349453657,-201.65985463,0.000179,2]
[405835871,1771349453667,-6861.7667708,0.000179,2]
[405835872,1771349453677,-1000.0,0.00017902,2]
[405835873,1771349453686,-1000.0,0.00017902,2]
[405835874,1771349453696,-500.0,0.00017904,2]
[405835875,1771349453706,-1000.0,0.00017913,2]
[405835876,1771349453715,-1000.0,0.0001792,2]
[405835877,1771349453727,-350.0,0.00017921,2]
[405835878,1771349453737,-1000.0,0.00017922,2]
[405835879,1771349453747,-1000.0,0.00017925,2]
[405835880,1771349453757,-1000.0,0.00017927,2]
[405835881,1771349453767,-686.0,0.00017931,2]
[405835882,1771349453777,-1000.0,0.00017935,2]
[405835883,1771349453787,-6029.3768945,0.00017946,2]
[405835884,1771349453796,-7752.0560072,0.00017946,2]
[405835885,1771349453806,-1000.0,0.00017946,2]
[405835886,1771349453817,-151.0,0.00017946,2]
[405835887,1771349453828,-349.06135,0.00017946,2]
[405835888,1771349453838,-349.06135,0.00017946,2]
[405835889,1771349453848,-349.06135,0.00017946,2]
[405835890,1771349453858,-349.06135,0.00017946,2]
[405835891,1771349453868,-151.0,0.00017946,2]
[405835892,1771349453878,-1000.0,0.00017946,2]
[405835893,1771349453888,-1000.0,0.00017946,2]
[405835894,1771349453898,-1000.0,0.00017946,2]
[405835895,1771349453908,-1000.0,0.00017946,2]
[405835896,1771349453918,-1000.0,0.00017946,2]
[405835897,1771349453928,-1000.0,0.00017946,2]
[405835898,1771349453938,-1426.886424,0.00017946,2]
[405835899,1771349453948,-1000.0,0.00017946,2]
[405835900,1771349453957,-1038.507706,0.00017946,2]
[405835901,1771349453967,-1426.886424,0.00017946,2]
[405835902,1771349453977,-1426.886424,0.00017946,2]
[405835903,1771349453987,-1426.886424,0.00017946,2]
[405835904,1771349453997,-618297.8538356,0.00017946,2]
[405835905,1771349454008,-20499.10730416,0.00017946,4]
[405835906,1771349454018,-63612.5638215,0.00017946,4]
[405835907,1771349454027,-1000.0,0.00017952,2]
[405835908,1771349454038,-1000.0,0.00017954,2]
[405835909,1771349454049,-1000.0,0.00017955,2]
[405835910,1771349454059,-224.65460803,0.00017959,2]
[405835911,1771349454068,-1000.0,0.00017959,2]
[405835912,1771349454078,-1000.0,0.00017968,2]
[405835913,1771349454088,-151.51888634,0.00017979,2]
[405835914,1771349454098,-150.0,0.00017981,2]
[405835915,1771349454107,-226.42090261,0.00017982,2]
[405835916,1771349454117,-1000.0,0.00017983,2]
[405835917,1771349454127,-1000.0,0.0001799,2]
[405835918,1771349454137,-1000.0,0.00017995,2]
[405835919,1771349454146,-151.0,0.00017997,2]
[405835920,1771349454157,-500.0,0.00017998,3]
[405835921,1771349454166,-500.0,0.00017998,3]
[405835922,1771349454175,-500.0,0.00017998,3]
[405835923,1771349454185,-500.0,0.00017998,3]
[405835924,1771349454195,-500.0,0.00017998,3]
[405835925,1771349454204,-151.0,0.00017998,3]
[405835926,1771349454213,-500.0,0.00017998,3]
[405835927,1771349454223,-151.0,0.00017998,3]
[405835928,1771349454232,-500.0,0.00017998,3]
[405835929,1771349454242,-151.0,0.00017998,3]
[405835930,1771349454251,-250.0,0.00017998,3]
[405835931,1771349454261,-500.0,0.00017998,3]
[405835932,1771349454270,-250.0,0.00017998,3]
[405835933,1771349454280,-1428.38747117,0.00017998,3]
[405835934,1771349454289,-151.0,0.00017998,3]
[405835935,1771349454299,-500.0,0.00017998,3]
[405835936,1771349454308,-250.0,0.00017998,3]
[405835937,1771349454317,-250.0,0.00017998,3]
[405835938,1771349454327,-226.88409827,0.00017998,3]
[405835939,1771349454336,-250.0,0.00017998,3]
[405835940,1771349454346,-151.0,0.00017998,3]
[405835941,1771349454357,-500.0,0.00017998,3]
[405835942,1771349454366,-1100.42979595,0.00017998,3]
[405835943,1771349454376,-250.0,0.00017998,3]
[405835944,1771349454386,-250.0,0.00017998,3]
[405835945,1771349454395,-250.0,0.00017998,3]
[405835946,1771349454405,-151.0,0.00017998,3]
[405835947,1771349454414,-500.0,0.00017998,3]
[405835948,1771349454425,-250.0,0.00017998,3]
[405835949,1771349454435,-250.0,0.00017998,3]
[405835950,1771349454444,-250.0,0.00017998,3]
[405835951,1771349454453,-250.0,0.00017998,3]
[405835952,1771349454463,-151.0,0.00017998,3]
[405835953,1771349454473,-500.0,0.00017998,3]
[405835954,1771349454483,-250.0,0.00017998,3]
[405835955,1771349454492,-250.0,0.00017998,3]
[405835956,1771349454503,-250.0,0.00017998,3]
[405835957,1771349454512,-250.0,0.00017998,3]
[405835958,1771349454522,-151.0,0.00017998,3]
[405835959,1771349454531,-500.0,0.00017998,3]
[405835960,1771349454540,-250.0,0.00017998,3]
[405835961,1771349454550,-250.0,0.00017998,3]
[405835962,1771349454560,-250.0,0.00017998,3]
[405835963,1771349454569,-250.0,0.00017998,3]
[405835964,1771349454579,-500.0,0.00017998,3]
[405835965,1771349454589,-250.0,0.00017998,3]
[405835966,1771349454598,-151.0,0.00017998,3]
[405835967,1771349454607,-250.0,0.00017998,3]
[405835968,1771349454616,-250.0,0.00017998,3]
[405835969,1771349454626,-500.0,0.00017998,3]
[405835970,1771349454635,-250.0,0.00017998,3]
[405835971,1771349454645,-250.0,0.00017998,3]
[405835972,1771349454654,-151.0,0.00017998,3]
[405835973,1771349454663,-174.61919141,0.00017998,3]
[405835974,1771349454674,-250.0,0.00017998,3]
[405835975,1771349454683,-500.0,0.00017998,3]
[405835976,1771349454693,-250.0,0.00017998,3]
[405835977,1771349454703,-250.0,0.00017998,3]
[405835978,1771349454712,-250.0,0.00017998,3]
[405835979,1771349454723,-151.0,0.00017998,3]
[405835980,1771349454732,-181.08010149,0.00017998,3]
[405835981,1771349454743,-250.0,0.00017998,3]
[405835982,1771349454752,-500.0,0.00017998,3]
[405835983,1771349454762,-250.0,0.00017998,3]
[405835984,1771349454772,-250.0,0.00017998,3]
[405835985,1771349454782,-250.0,0.00017998,3]
[405835986,1771349454792,-187.78006525,0.00017998,3]
[405835987,1771349454805,-151.0,0.00017998,3]
[405835988,1771349454815,-250.0,0.00017998,3]
[405835989,1771349454826,-250.0,0.00017998,3]
[405835990,1771349454837,-500.0,0.00017998,3]
[405835991,1771349454850,-250.0,0.00017998,3]
[405835992,1771349454860,-250.0,0.00017998,3]
[405835993,1771349454870,-194.72792766,0.00017998,3]
[405835994,1771349454881,-250.0,0.00017998,3]
[405835995,1771349454891,-250.0,0.00017998,3]
[405835996,1771349454900,-500.0,0.00017998,3]
[405835997,1771349454910,-250.0,0.00017998,3]
[405835998,1771349454919,-151.0,0.00017998,3]
[405835999,1771349454929,-250.0,0.00017998,3]
[405836000,1771349454939,-201.93286099,0.00017998,3]
[405836001,1771349454948,-250.0,0.00017998,3]
[405836002,1771349454958,-250.0,0.00017998,3]
[405836003,1771349454967,-151.0,0.00017998,3]
[405836004,1771349454976,-209.40437684,0.00017998,3]
[405836005,1771349454985,-250.0,0.00017998,3]
[405836006,1771349454995,-217.15233878,0.00017998,3]
[405836007,1771349455004,-225.18697532,0.00017998,3]
[405836008,1771349455013,-233.51889341,0.00017998,3]
[405836009,1771349455022,-242.15909246,0.00017998,3]
[405836010,1771349455031,-251.11897888,0.00017998,3]
[405836011,1771349455041,-260.4103811,0.00017998,3]
[405836012,1771349455054,-270.0455652,0.00017998,3]
[405836013,1771349455064,-578.20924308,0.00017998,3]
[405836014,1771349455073,-187.34035743,0.00017998,3]
[405836015,1771349455083,-743.50770149,0.00017998,3]
[405836016,1771349455093,-599.60298507,0.00017998,3]
[405836017,1771349455102,-771.01748645,0.00017998,3]
[405836018,1771349455112,-621.78829552,0.00017998,3]
[405836019,1771349455122,-799.54513345,0.00017998,3]
[405836020,1771349455133,-500.0,0.00017998,3]
[405836021,1771349455144,-644.79446246,0.00017998,3]
[405836022,1771349455154,-829.12830338,0.00017998,3]
[405836023,1771349455164,-500.0,0.00017998,3]
[405836024,1771349455175,-668.65185757,0.00017998,3]
[405836025,1771349455185,-859.80605061,0.00017998,3]
[405836026,1771349455195,-500.0,0.00017998,3]
[405836027,1771349455204,-693.3919763,0.00017998,3]
[405836028,1771349455214,-891.61887448,0.00017998,3]
[405836029,1771349455224,-500.0,0.00017998,3]
[405836030,1771349455233,-719.04747942,0.00017998,3]
[405836031,1771349455243,-151.0,0.00017998,3]
[405836032,1771349455252,-924.60877284,0.00017998,3]
[405836033,1771349455261,-500.0,0.00017998,3]
[405836034,1771349455271,-745.65223616,0.00017998,3]
[405836035,1771349455281,-9552.16786547,0.00017998,3]
[405836036,1771349455291,-209.40437684,0.00017998,3]
[405836037,1771349455305,-958.81929743,0.00017998,3]
[405836038,1771349455314,-500.0,0.00017998,3]
[405836039,1771349455324,-773.2413689,0.00017998,3]
[405836040,1771349455334,-9905.5980765,0.00017998,3]
[405836041,1771349455343,-217.15233878,0.00017998,3]
[405836042,1771349455353,-151.0,0.00017998,3]
[405836043,1771349455362,-994.29561144,0.00017998,3]
[405836044,1771349455372,-500.0,0.00017998,3]
[405836045,1771349455381,-10272.10520533,0.00017998,3]
[405836046,1771349455392,-166.95668844,0.00017998,3]
[405836047,1771349455403,-151.0,0.00017998,3]
[405836048,1771349455413,-500.0,0.00017998,3]
[405836049,1771349455425,-1725.36664557,0.00017998,3]
[405836050,1771349455435,-1031.08454906,0.00017998,3]
[405836051,1771349455444,-500.0,0.00017998,3]
[405836052,1771349455454,-151.0,0.00017998,3]
[405836053,1771349455464,-1069.23467738,0.00017998,3]
[405836054,1771349455474,-500.0,0.00017998,3]
[405836055,1771349455484,-151.0,0.00017998,3]
[405836056,1771349455495,-500.0,0.00017998,3]
[405836057,1771349455504,-151.0,0.00017998,3]
[405836058,1771349455513,-151.0,0.00017998,3]
[405836059,1771349455523,-151.0,0.00017998,3]
[405836060,1771349455532,-151.0,0.00017998,3]
[405836061,1771349455542,-151.0,0.00017998,3]
[405836062,1771349455555,-200.0,0.00017998,3]
[405836063,1771349455564,-151.0,0.00017998,3]
[405836064,1771349455574,-200.0,0.00017998,3]
[405836065,1771349455584,-200.0,0.00017998,3]
[405836066,1771349455593,-200.0,0.00017998,3]
[405836067,1771349455603,-200.0,0.00017998,3]
[405836068,1771349455612,-200.0,0.00017998,3]
[405836069,1771349455621,-3000.0,0.00017998,3]
[405836070,1771349455711,-160.0,0.00017998,3]
[405836071,1771349455720,-200.0,0.00017998,3]
[405836072,1771349455730,-151.12957794,0.00017998,3]
[405836073,1771349455739,-3000.0,0.00017998,3]
[405836074,1771349455747,-160.0,0.00017998,3]
[405836075,1771349455757,-200.0,0.00017998,3]
[405836076,1771349455766,-200.0,0.00017998,3]
[405836077,1771349455774,-3000.0,0.00017998,3]
[405836078,1771349455784,-160.32510575,0.00017998,3]
[405836079,1771349455793,-200.0,0.00017998,3]
[405836080,1771349455804,-200.0,0.00017998,3]
[405836081,1771349455814,-3000.0,0.00017998,3]
[405836082,1771349455823,-200.0,0.00017998,3]
[405836083,1771349455832,-200.0,0.00017998,3]
[405836084,1771349455841,-3000.0,0.00017998,3]
[405836085,1771349455851,-200.0,0.00017998,3]
[405836086,1771349455860,-200.0,0.00017998,3]
[405836087,1771349455869,-3000.0,0.00017998,3]
[405836088,1771349455878,-200.0,0.00017998,3]
[405836089,1771349455887,-200.0,0.00017998,3]
[405836090,1771349455896,-3000.0,0.00017998,3]
[405836091,1771349455906,-200.0,0.00017998,3]
[405836092,1771349455916,-250.0,0.00017998,3]
[405836093,1771349455925,-200.0,0.00017998,3]
[405836094,1771349455935,-3000.0,0.00017998,3]
[405836095,1771349455945,-200.0,0.00017998,3]
[405836096,1771349455954,-200.0,0.00017998,3]
[405836097,1771349455964,-250.0,0.00017998,3]
[405836098,1771349455974,-3000.0,0.00017998,3]
[405836099,1771349455983,-200.0,0.00017998,3]
[405836100,1771349455992,-253.83621088,0.00017998,3]
[405836101,1771349456002,-200.0,0.00017998,3]
[405836102,1771349456011,-3000.0,0.00017998,3]
[405836103,1771349456019,-200.0,0.00017998,3]
[405836104,1771349456028,-200.0,0.00017998,3]
[405836105,1771349456037,-3000.0,0.00017998,3]
[405836106,1771349456046,-200.0,0.00017998,3]
[405836107,1771349456055,-200.0,0.00017998,3]
[405836108,1771349456066,-209.40437684,0.00017998,3]
[405836109,1771349456075,-200.0,0.00017998,3]
[405836110,1771349456083,-200.0,0.00017998,3]
[405836111,1771349456093,-217.15233878,0.00017998,3]
[405836112,1771349456103,-200.0,0.00017998,3]
[405836113,1771349456112,-200.0,0.00017998,3]
[405836114,1771349456121,-200.0,0.00017998,3]
[405836115,1771349456130,-225.18697532,0.00017998,3]
[405836116,1771349456139,-200.0,0.00017998,3]
[405836117,1771349456148,-233.51889341,0.00017998,3]
[405836118,1771349456157,-200.0,0.00017998,3]
[405836119,1771349456167,-242.15909246,0.00017998,3]
[405836120,1771349456176,-200.0,0.00017998,3]
[405836121,1771349456185,-251.11897888,0.00017998,3]
[405836122,1771349456194,-200.0,0.00017998,3]
[405836123,1771349456203,-260.4103811,0.00017998,3]
[405836124,1771349456212,-200.0,0.00017998,3]
[405836125,1771349456222,-151.0,0.00017998,3]
[405836126,1771349456231,-270.0455652,0.00017998,3]
[405836127,1771349456240,-200.0,0.00017998,3]
[405836128,1771349456250,-151.0,0.00017998,3]
[405836129,1771349456259,-500.0,0.00017998,3]
[405836130,1771349456269,-280.03725112,0.00017998,3]
[405836131,1771349456278,-151.0,0.00017998,3]
[405836132,1771349456287,-200.0,0.00017998,3]
[405836133,1771349456297,-500.0,0.00017998,3]
[405836134,1771349456307,-290.39862941,0.00017998,3]
[405836135,1771349456317,-151.0,0.00017998,3]
[405836136,1771349456326,-200.0,0.00017998,3]
[405836137,1771349456336,-500.0,0.00017998,3]
[405836138,1771349456345,-301.1433787,0.00017998,3]
[405836139,1771349456355,-151.0,0.00017998,3]
[405836140,1771349456364,-500.0,0.00017998,3]
[405836141,1771349456373,-151.0,0.00017998,3]
[405836142,1771349456382,-721.12765535,0.00017998,3]
[405836143,1771349456391,-500.0,0.00017998,3]
[405836144,1771349456401,-151.0,0.00017998,3]
[405836145,1771349456410,-747.8093786,0.00017998,3]
[405836146,1771349456421,-500.0,0.00017998,3]
[405836147,1771349456432,-775.47832561,0.00017998,3]
[405836148,1771349456441,-151.0,0.00017998,3]
[405836149,1771349456451,-500.0,0.00017998,3]
[405836150,1771349456459,-804.17102365,0.00017998,3]
[405836151,1771349456470,-151.0,0.00017998,3]
[405836152,1771349456479,-500.0,0.00017998,3]
[405836153,1771349456488,-151.0,0.00017998,3]
[405836154,1771349456498,-500.0,0.00017998,3]
[405836155,1771349456507,-833.92535153,0.00017998,3]
[405836156,1771349456516,-151.0,0.00017998,3]
[405836157,1771349456526,-500.0,0.00017998,3]
[405836158,1771349456536,-864.78058953,0.00017998,3]
[405836159,1771349456547,-693.3919763,0.00017998,3]
[405836160,1771349456556,-500.0,0.00017998,3]
[405836161,1771349456565,-896.77747135,0.00017998,3]
[405836162,1771349456574,-719.04747942,0.00017998,3]
[405836163,1771349456583,-500.0,0.00017998,3]
[405836164,1771349456592,-929.95823779,0.00017998,3]
[405836165,1771349456601,-745.65223616,0.00017998,3]
[405836166,1771349456611,-500.0,0.00017998,3]
[405836167,1771349456620,-964.36669259,0.00017998,3]
[405836168,1771349456629,-773.2413689,0.00017998,3]
[405836169,1771349456638,-500.0,0.00017998,3]
[405836170,1771349456647,-1000.04826021,0.00017998,3]
[405836171,1771349456656,-718.33554708,0.00017998,3]
[405836172,1771349456666,-200.0,0.00017998,3]
[405836173,1771349456675,-500.0,0.00017998,3]
[405836174,1771349456684,-1037.05004584,0.00017998,3]
[405836175,1771349456695,-200.0,0.00017998,3]
[405836176,1771349456704,-500.0,0.00017998,3]
[405836177,1771349456713,-500.0,0.00017998,3]
[405836178,1771349456722,-250.0,0.00017998,3]
[405836179,1771349456732,-250.0,0.00017998,3]
[405836180,1771349456742,-500.0,0.00017998,3]